bitfinex/quotes_SOLUSD_20250415
["timestamp","ask_amount","ask_price","bid_price","bid_amount"]
[1744726800376,0.063,130.88,130.76,58.85274767]
[1744726800377,58.85274767,130.82,130.76,0.28432314]
[1744726800705,20.063,130.88,130.74,66.78577081]
[1744726800889,0.063,130.88,130.77,0.28432314]
[1744726801094,0.063,130.88,130.81,58.85274767]
[1744726801292,58.85274767,130.83,130.76,7.6475]
[1744726801493,0.063,130.88,130.77,0.42648471]
[1744726801801,58.85274767,130.86,130.81,58.85274767]
[1744726801978,58.85274767,130.84,130.78,0.14216157]
[1744726802174,58.85274767,130.79,130.73,7.6487]
[1744726802409,238.54,130.8,130.59,0.03]
[1744726802575,58.85274767,130.67,130.62,58.85274767]
[1744726802901,78.85274767,130.76,130.6,7.6569]
[1744726803073,20.0,130.78,130.69,58.85274767]
[1744726803277,238.52,130.81,130.69,58.85274767]
[1744726803476,238.52,130.81,130.64,26.7911]
[1744726803477,58.85274767,130.7,130.65,58.85274767]
[1744726803714,58.85274767,130.7,130.63,26.93516157]
[1744726803923,58.85274767,130.7,130.65,58.85274767]
[1744726804090,58.85274767,130.67,130.58,0.57216157]
[1744726804281,78.85274767,130.69,130.6,7.6569]
[1744726804493,58.85274767,130.64,130.58,0.43]
[1744726804802,58.85274767,130.64,130.58,8.0879]
[1744726805016,20.0,130.67,130.58,0.43]
[1744726805190,58.85274767,130.62,130.58,0.43]
[1744726805380,20.0,130.59,130.58,1e-08]
[1744726805580,377.22549534,130.59,130.54,2.7015111]
[1744726805782,117.70549534,130.55,130.54,2.7015111]
[1744726806007,137.70549534,130.55,130.54,2.7015111]
[1744726806303,20.0,130.52,130.39,1.578]
[1744726806504,78.85274767,130.55,130.39,2.578]
[1744726806718,20.0,130.58,130.41,58.85274767]
[1744726807024,238.62,130.64,130.54,58.99490924]
[1744726807208,238.62,130.64,130.5,9.190855]
[1744726807209,258.62,130.64,130.5,9.190855]
[1744726807375,58.85274767,130.58,130.53,0.14216157]
[1744726807583,10.80700034,130.69,130.54,1.28432314]
[1744726807778,10.80700034,130.69,130.53,1.87962314]
[1744726807779,20.0,130.68,130.53,6.0785808]
[1744726808016,58.85274767,130.62,130.53,4.4832808]
[1744726808183,238.62,130.61,130.53,4.4832808]
[1744726808385,58.85274767,130.55,130.53,4.4832808]
[1744726808577,238.62,130.61,130.53,4.4832808]
[1744726808892,238.62,130.61,130.54,0.71080785]
[1744726809095,238.62,130.61,130.53,4.4832808]
[1744726809300,20.0,130.6,130.53,4.4832808]
[1744726809528,58.85274767,130.55,130.53,4.4832808]
[1744726809692,58.85274767,130.54,130.53,4.4832808]
[1744726810299,78.85274767,130.55,130.53,4.4832808]
[1744726810505,58.85274767,130.54,130.53,4.4832808]
[1744726810901,258.62,130.61,130.53,4.4832808]
[1744726811205,5.39397758,130.6,130.54,58.85274767]
[1744726811397,5.39397758,130.6,130.57,58.85274767]
[1744726811716,5.39397758,130.6,130.59,59.56355552]
[1744726811896,58.85274767,130.7,130.6,0.71080785]
[1744726812097,38.37706634,130.72,130.67,58.85274767]
[1744726812298,238.8,130.75,130.63,0.56864628]
[1744726812607,58.85274767,130.69,130.56,0.71080785]
[1744726812924,20.0,130.67,130.56,0.14216157]
[1744726813216,20.0,130.67,130.57,58.85274767]
[1744726813385,120.50879625,130.74,130.58,0.71080785]
[1744726813591,58.85274767,130.74,130.68,58.85274767]
[1744726813790,258.8,130.78,130.67,0.14216157]
[1744726813990,258.8,130.78,130.69,58.85274767]
[1744726814211,238.8,130.78,130.71,58.85274767]
[1744726814418,238.8,130.78,130.7,0.14216157]
[1744726814626,238.8,130.78,130.74,58.85274767]
[1744726814789,238.8,130.78,130.69,59.27923238]
[1744726814994,238.8,130.78,130.74,58.85274767]
[1744726815292,238.8,130.78,130.7,0.28432314]
[1744726815293,297.65274767,130.78,130.7,0.71080785]
[1744726815496,58.85274767,130.71,130.63,7.6552]
[1744726815714,20.0,130.72,130.61,58.85274767]
[1744726816020,58.85274767,130.66,130.59,0.14216157]
[1744726816316,58.85274767,130.63,130.58,58.85274767]
[1744726816499,258.76,130.68,130.58,58.85274767]
[1744726816700,58.85274767,130.63,130.54,7.6604]
[1744726816891,258.76,130.68,130.59,58.85274767]
[1744726817224,58.85274767,130.6,130.53,4.4832808]
[1744726817413,58.85274767,130.56,130.53,4.4832808]
[1744726817925,58.85274767,130.57,130.53,4.4832808]
[1744726818220,58.85274767,130.55,130.53,4.4832808]
[1744726818446,58.85274767,130.54,130.53,4.4832808]
[1744726818949,58.85274767,130.54,130.5,1.528355]
[1744726818950,20.0,130.52,130.5,1.528355]
[1744726819245,20.0,130.47,130.32,7.6734]
[1744726819454,238.78,130.46,130.31,27.2674]
[1744726819657,20.0,130.45,130.34,58.85274767]
[1744726819936,58.85274767,130.38,130.33,58.85274767]
[1744726820114,58.85274767,130.38,130.32,7.6734]
[1744726820115,58.85274767,130.39,130.32,7.6734]
[1744726820317,58.85274767,130.39,130.34,58.85274767]
[1744726820518,117.70549534,130.35,130.3,3.19925755]
[1744726820746,20.0,130.32,130.3,3.19925755]
[1744726820928,58.85274767,130.34,130.3,3.19925755]
[1744726821246,58.85274767,130.33,130.3,3.19925755]
[1744726821442,58.85274767,130.34,130.3,3.19925755]
[1744726821741,20.0,130.25,130.13,19.18268109]
[1744726821945,20.0,130.23,130.16,58.85274767]
[1744726822124,20.0,130.23,130.13,78.03542876]
[1744726822315,20.0,130.23,130.13,19.18268109]
[1744726822842,20.0,130.25,130.13,78.03542876]
[1744726823027,20.0,130.28,130.13,85.39090924]
[1744726823221,20.0,130.28,130.13,85.89090924]
[1744726823427,20.0,130.27,130.15,26.892]
[1744726823843,20.0,130.31,130.16,0.14216157]
[1744726824033,1.0,130.3,130.16,0.42648471]
[1744726824223,20.0,130.29,130.16,0.14216157]
[1744726824419,20.0,130.25,130.24,58.85274767]
[1744726824626,20.0,130.25,130.16,1.14216157]
[1744726824853,20.0,130.32,130.24,58.85274767]
[1744726825050,20.0,130.36,130.21,0.56864628]
[1744726825223,58.85274767,130.34,130.29,58.85274767]
[1744726825425,58.85274767,130.33,130.27,58.85274767]
[1744726825630,58.85274767,130.34,130.21,7.6799]
[1744726825839,20.0,130.33,130.22,0.71080785]
[1744726826035,20.0,130.3,130.2,66.53314767]
[1744726826327,20.0,130.3,130.22,58.85274767]
[1744726826550,20.0,130.3,130.21,0.42648471]
[1744726826746,1.37792202,130.33,130.21,0.42648471]
[1744726826932,20.0,130.39,130.29,58.85274767]
[1744726827132,20.0,130.37,130.2,0.28432314]
[1744726827333,20.0,130.33,130.21,0.42648471]
[1744726827654,20.0,130.31,130.22,0.42648471]
[1744726827836,20.0,130.31,130.23,58.85274767]
[1744726828031,20.0,130.38,130.3,58.85274767]
[1744726828342,20.0,130.38,130.26,0.14216157]
[1744726828343,20.0,130.34,130.21,0.42648471]
[1744726828658,20.0,130.34,130.24,58.85274767]
[1744726828659,60.23066969,130.34,130.24,58.85274767]
[1744726828864,1.37792202,130.34,130.21,0.28432314]
[1744726829061,239.12,130.4,130.31,0.28432314]
[1744726829362,297.97274767,130.4,130.31,0.28432314]
[1744726829533,259.12,130.4,130.28,7.6757]
[1744726829861,58.85274767,130.29,130.22,0.14216157]
[1744726830035,78.85274767,130.34,130.24,58.85274767]
[1744726830241,20.0,130.37,130.27,0.14216157]
[1744726830433,20.0,130.37,130.21,18.64964886]
[1744726830631,259.12,130.4,130.3,58.85274767]
[1744726830939,239.12,130.4,130.32,0.28432314]
[1744726831142,58.85274767,130.39,130.3,0.14216157]
[1744726831346,239.12,130.4,130.32,0.56864628]
[1744726831532,20.0,130.43,130.33,7.6728]
[1744726831867,38.46190864,130.46,130.37,0.56864628]
[1744726832162,1.6945,130.53,130.45,58.85274767]
[1744726832333,1.6945,130.53,130.44,0.14216157]
[1744726832655,1.6945,130.53,130.43,0.28432314]
[1744726832656,1.6945,130.53,130.49,59.13707081]
[1744726832847,1.6945,130.53,130.49,0.14216157]
[1744726833053,1.6945,130.53,130.52,58.85274767]
[1744726833228,1.6945,130.53,130.45,1.0]
[1744726833435,1.6945,130.53,130.42,0.56864628]
[1744726833630,1.6945,130.53,130.52,58.85274767]
[1744726833938,1.6945,130.53,130.51,0.71080785]
[1744726834149,1.6945,130.53,130.52,59.56355552]
[1744726834339,0.0279,130.53,130.52,78.21320438]
[1744726834547,58.85274767,130.62,130.53,0.71080785]
[1744726834746,58.85274767,130.55,130.51,0.56864628]
[1744726834939,58.85274767,130.54,130.49,59.56355552]
[1744726835243,20.0,130.61,130.42,38.3364]
[1744726835244,58.85274767,130.5,130.45,59.13707081]
[1744726835442,20.0,130.59,130.48,59.13707081]
[1744726835753,58.85274767,130.54,130.48,0.71080785]
[1744726835956,58.85274767,130.5,130.46,0.42648471]
[1744726836159,20.0,130.59,130.47,0.14216157]
[1744726836331,58.85274767,130.55,130.49,58.85274767]
[1744726836652,58.85274767,130.5,130.41,6.5526]
[1744726836859,239.2,130.54,130.45,0.14216157]
[1744726837161,58.85274767,130.53,130.46,0.14216157]
[1744726837337,239.2,130.54,130.46,0.14216157]
[1744726837663,239.2,130.54,130.46,0.28432314]
[1744726837664,58.85274767,130.51,130.46,0.28432314]
[1744726837960,239.2,130.54,130.46,0.42648471]
[1744726838141,58.85274767,130.52,130.46,0.71080785]
[1744726838333,239.2,130.54,130.47,0.56864628]
[1744726838534,58.85274767,130.52,130.46,58.85274767]
[1744726838733,58.85274767,130.51,130.46,58.85274767]
[1744726838962,58.85274767,130.5,130.45,0.56864628]
[1744726839141,58.85274767,130.5,130.33,245.91129038]
[1744726839142,38.64964886,130.53,130.34,104.56014767]
[1744726839354,38.64964886,130.53,130.4,0.28432314]
[1744726839672,239.2,130.54,130.47,58.99490924]
[1744726839848,58.85274767,130.53,130.48,59.42139395]
[1744726840035,78.85274767,130.62,130.52,58.85274767]
[1744726840236,239.16,130.63,130.52,0.71080785]
[1744726840460,58.85274767,130.6,130.52,0.71080785]
[1744726840670,239.16,130.63,130.51,0.28432314]
[1744726840960,239.16,130.63,130.59,58.85274767]
[1744726841267,58.85274767,130.6,130.47,1.0]
[1744726841467,246.8153,130.63,130.55,59.13707081]
[1744726841657,239.16,130.63,130.57,0.71080785]
[1744726842043,239.16,130.63,130.6,59.13707081]
[1744726842238,58.85274767,130.62,130.57,0.71080785]
[1744726842444,239.16,130.63,130.58,59.27923238]
[1744726842649,239.16,130.63,130.59,58.99490924]
[1744726842844,0.063,130.66,130.62,58.85274767]
[1744726843168,58.85274767,130.63,130.57,0.71080785]
[1744726843335,58.91574767,130.66,130.6,59.13707081]
[1744726843542,58.85274767,130.62,130.57,0.28432314]
[1744726843859,58.85274767,130.63,130.58,58.85274767]
[1744726844047,0.063,130.66,130.57,8.36920785]
[1744726844442,0.063,130.66,130.6,0.71080785]
[1744726844643,0.063,130.66,130.59,53.74729163]
[1744726844843,0.063,130.66,130.6,0.42648471]
[1744726845057,53.74729163,130.65,130.6,0.42648471]
[1744726845269,0.063,130.66,130.6,0.42648471]
[1744726845446,53.74729163,130.65,130.6,54.17377634]
[1744726845647,61.46379163,130.66,130.6,61.83037634]
[1744726845865,20.0,130.6,130.5,7.6623]
[1744726846065,53.74729163,130.51,130.43,6.407]
[1744726846369,53.74729163,130.46,130.39,1.5584]
[1744726846663,53.74729163,130.49,130.43,53.74729163]
[1744726846838,53.74729163,130.51,130.46,0.14216157]
[1744726847041,53.74729163,130.48,130.4,7.6687]
[1744726847268,53.74729163,130.47,130.42,53.74729163]
[1744726847476,53.74729163,130.45,130.34,72.92689163]
[1744726847647,61.41479163,130.42,130.33,6.61129038]
[1744726847842,53.74729163,130.4,130.35,67.73309163]
[1744726848076,53.74729163,130.42,130.37,53.74729163]
[1744726848243,1.28432314,130.53,130.35,13.9858]
[1744726848244,20.0,130.56,130.35,33.1649]
[1744726848569,7.6581,130.58,130.42,0.28432314]
[1744726848742,7.6581,130.58,130.42,19.36045671]
[1744726848946,53.74729163,130.5,130.42,0.71080785]
[1744726849167,53.74729163,130.55,130.43,0.14216157]
[1744726849470,53.74729163,130.47,130.42,0.14216157]
[1744726849671,26.8136,130.53,130.42,0.14216157]
[1744726849959,26.8136,130.53,130.42,61.69891477]
[1744726850266,53.74729163,130.48,130.43,53.74729163]
[1744726850472,53.74729163,130.44,130.36,7.671]
[1744726850763,53.74729163,130.48,130.37,53.74729163]
[1744726850967,53.74729163,130.43,130.36,7.671]
[1744726851149,53.74729163,130.43,130.38,53.74729163]
[1744726851340,53.74729163,130.43,130.37,0.71080785]
[1744726851341,239.04,130.5,130.41,0.42648471]
[1744726851542,239.04,130.5,130.4,53.8894532]
[1744726851543,53.74729163,130.45,130.39,0.14216157]
[1744726851840,7.6634,130.49,130.42,53.74729163]
[1744726852042,53.74729163,130.44,130.39,0.14216157]
[1744726852243,26.8219,130.49,130.41,0.14216157]
[1744726852244,7.6634,130.49,130.41,0.14216157]
[1744726852456,53.74729163,130.48,130.39,53.74729163]
[1744726852653,73.74729163,130.48,130.37,7.6703]
[1744726852867,53.74729163,130.41,130.37,7.6703]
[1744726853258,18.64964886,130.47,130.37,53.74729163]
[1744726853469,18.64964886,130.47,130.36,7.95512314]
[1744726853772,20.0,130.46,130.36,61.41809163]
[1744726853968,7.6634,130.49,130.41,54.45809948]
[1744726854179,7.6604,130.54,130.47,53.74729163]
[1744726854476,7.6604,130.54,130.48,53.74729163]
[1744726854658,53.74729163,130.54,130.48,53.74729163]
[1744726854856,292.86729163,130.55,130.49,54.45809948]
[1744726855175,239.12,130.55,130.53,53.74729163]
[1744726855346,239.12,130.55,130.48,53.74729163]
[1744726855347,61.40489163,130.59,130.52,0.71080785]
[1744726855671,239.12,130.63,130.54,53.74729163]
[1744726855672,53.74729163,130.6,130.54,53.74729163]
[1744726855896,61.40319163,130.62,130.57,61.40589163]
[1744726856183,246.7752,130.63,130.53,7.80306157]
[1744726856477,53.74729163,130.6,130.55,0.14216157]
[1744726856668,53.74729163,130.58,130.52,7.6615]
[1744726856871,265.9132,130.63,130.54,0.56864628]
[1744726857084,53.74729163,130.58,130.54,0.56864628]
[1744726857257,53.74729163,130.59,130.52,7.6615]
[1744726857451,53.74729163,130.58,130.53,53.74729163]
[1744726857648,53.74729163,130.58,130.52,61.40879163]
[1744726857848,265.9132,130.63,130.53,54.45809948]
[1744726858057,53.74729163,130.58,130.53,62.11899948]
[1744726858278,265.9132,130.63,130.55,0.71080785]
[1744726858576,53.74729163,130.57,130.49,6.5288]
[1744726858765,18.64964886,130.6,130.51,53.74729163]
[1744726858967,18.64964886,130.6,130.5,0.28432314]
[1744726858968,53.74729163,130.62,130.53,53.74729163]
[1744726859155,53.74729163,130.59,130.5,7.94702314]
[1744726859356,18.64964886,130.61,130.49,14.1921]
[1744726859574,53.74729163,130.55,130.5,53.74729163]
[1744726859760,53.74729163,130.54,130.48,53.74729163]
[1744726859961,53.74729163,130.51,130.46,53.74729163]
[1744726860163,7.6623,130.51,130.45,53.8894532]
[1744726860371,53.74729163,130.49,130.44,53.77729163]
[1744726860575,53.74729163,130.46,130.44,0.03]
[1744726860764,72.39694049,130.45,130.44,0.03]
[1744726860965,20.0,130.44,130.3,19.1856]
[1744726861276,18.64964886,130.47,130.34,53.74729163]
[1744726861477,53.74729163,130.41,130.36,53.74729163]
[1744726861680,53.74729163,130.37,130.29,6.5653]
[1744726861861,53.74729163,130.41,130.29,6.5653]
[1744726861862,53.74729163,130.41,130.32,53.74729163]
[1744726862189,7.664,130.48,130.4,53.74729163]
[1744726862393,7.664,130.48,130.44,53.74729163]
[1744726862560,239.02,130.51,130.44,53.74729163]
[1744726862561,7.6635,130.49,130.44,53.74729163]
[1744726862865,53.74729163,130.45,130.36,0.14216157]
[1744726863192,7.6635,130.49,130.43,53.74729163]
[1744726863393,53.74729163,130.48,130.43,54.45809948]
[1744726863691,53.74729163,130.47,130.42,53.8894532]
[1744726863994,53.74729163,130.47,130.4,0.14216157]
[1744726864178,26.31184886,130.51,130.42,53.74729163]
[1744726864372,26.8178,130.51,130.4,0.56864628]
[1744726864594,26.8178,130.51,130.42,54.03161477]
[1744726864898,53.74729163,130.43,130.31,18.933972]
[1744726865068,73.74729163,130.48,130.35,0.14216157]
[1744726865069,53.74729163,130.4,130.35,0.14216157]
[1744726865275,53.74729163,130.38,130.31,0.14216157]
[1744726865487,239.1,130.43,130.34,53.74729163]
[1744726865662,20.0,130.39,130.29,14.2404]
[1744726865868,53.74729163,130.41,130.29,7.6751]
[1744726865869,53.74729163,130.35,130.29,7.6751]
[1744726866172,53.74729163,130.33,130.28,53.74729163]
[1744726866382,19.1741,130.39,130.24,19.194]
[1744726866584,7.6687,130.4,130.34,53.74729163]
[1744726866786,53.74729163,130.37,130.28,0.14216157]
[1744726866965,53.74729163,130.33,130.28,0.14216157]
[1744726867167,20.0,130.38,130.25,0.14216157]
[1744726867168,18.64964886,130.36,130.25,0.14216157]
[1744726867376,53.74729163,130.32,130.25,0.14216157]
[1744726867691,239.14,130.33,130.25,53.74729163]
[1744726867874,26.8404,130.4,130.32,53.74729163]
[1744726868200,18.64964886,130.39,130.28,0.28432314]
[1744726868499,18.79181043,130.39,130.28,7.6757]
[1744726868669,53.74729163,130.32,130.23,7.6787]
[1744726868867,20.0,130.35,130.24,0.28432314]
[1744726869198,53.74729163,130.34,130.29,53.74729163]
[1744726869491,138.92629163,130.41,130.28,0.42648471]
[1744726869788,53.74729163,130.4,130.34,53.74729163]
[1744726869995,53.74729163,130.37,130.28,0.71080785]
[1744726870297,20.0,130.35,130.23,7.96302314]
[1744726870589,20.0,130.33,130.16,1.0]
[1744726870789,53.74729163,130.34,130.25,53.74729163]
[1744726870992,53.74729163,130.34,130.29,53.74729163]
[1744726871191,53.74729163,130.34,130.27,0.14216157]
[1744726871192,7.671,130.37,130.28,0.42648471]
[1744726871374,7.671,130.37,130.33,53.74729163]
[1744726871566,7.671,130.37,130.31,53.74729163]
[1744726871769,7.671,130.37,130.28,0.42648471]
[1744726871972,53.74729163,130.35,130.28,0.14216157]
[1744726872174,53.74729163,130.33,130.24,0.14216157]
[1744726872395,53.74729163,130.31,130.25,53.74729163]
[1744726872595,26.8528,130.34,130.28,53.74729163]
[1744726872796,7.6692,130.39,130.33,53.74729163]
[1744726872969,53.74729163,130.36,130.28,0.71080785]
[1744726873170,53.74729163,130.35,130.29,53.74729163]
[1744726873370,53.74729163,130.34,130.27,6.2132]
[1744726873570,53.74729163,130.3,130.21,7.6795]
[1744726873795,53.74729163,130.3,130.25,53.74729163]
[1744726873990,53.74729163,130.27,130.2,6.1075]
[1744726874169,7.6769,130.26,130.23,53.74729163]
[1744726874372,239.3,130.32,130.26,0.28432314]
[1744726875194,239.3,130.32,130.28,53.74729163]
[1744726875402,239.3,130.32,130.26,0.42648471]
[1744726875586,239.3,130.32,130.28,53.74729163]
[1744726875896,246.9735,130.32,130.26,0.14216157]
[1744726876099,239.34,130.4,130.31,53.74729163]
[1744726876309,39.45397959,130.47,130.37,0.42648471]
[1744726876310,7.6686,130.41,130.37,0.42648471]
[1744726876596,53.74729163,130.45,130.4,53.74729163]
[1744726876977,53.74729163,130.43,130.37,0.14216157]
[1744726877187,53.74729163,130.44,130.38,53.74729163]
[1744726877571,53.74729163,130.42,130.37,53.74729163]
[1744726877772,53.74729163,130.38,130.3,0.28432314]
[1744726877994,53.74729163,130.4,130.34,53.74729163]
[1744726878299,53.74729163,130.38,130.33,53.8894532]
[1744726878501,53.74729163,130.4,130.34,53.74729163]
[1744726878711,53.74729163,130.39,130.34,53.74729163]
[1744726878884,19.1688,130.42,130.34,53.74729163]
[1744726879088,19.1688,130.42,130.35,53.74729163]
[1744726879275,7.6669,130.43,130.39,53.74729163]
[1744726879788,7.6669,130.43,130.37,0.42648471]
[1744726880087,19.1645,130.45,130.38,0.28432314]
[1744726880295,7.6651,130.46,130.41,53.74729163]
[1744726880501,7.6651,130.46,130.4,53.74729163]
[1744726880689,7.6651,130.46,130.42,53.74729163]
[1744726880889,53.74729163,130.43,130.35,7.6716]
[1744726881078,53.74729163,130.44,130.39,54.17377634]
[1744726881405,257.94964886,130.49,130.41,0.42648471]
[1744726881406,239.3,130.49,130.41,0.42648471]
[1744726881610,7.664,130.48,130.45,53.74729163]
[1744726881776,19.1497,130.55,130.45,0.14216157]
[1744726882145,7.6593,130.56,130.51,53.74729163]
[1744726882404,53.74729163,130.56,130.48,53.74729163]
[1744726882588,53.74729163,130.51,130.46,0.28432314]
[1744726882787,53.74729163,130.55,130.46,0.42648471]
[1744726882990,53.74729163,130.51,130.46,53.74729163]
[1744726883200,53.74729163,130.55,130.46,53.74729163]
[1744726883509,53.74729163,130.53,130.47,0.14216157]
[1744726883803,53.74729163,130.5,130.45,53.74729163]
[1744726883978,259.28,130.57,130.44,0.14216157]
[1744726884177,53.74729163,130.48,130.39,6.5674]
[1744726884400,53.74729163,130.4,130.33,6.5315]
[1744726884806,257.86964886,130.47,130.37,53.74729163]
[1744726885005,53.74729163,130.41,130.36,53.74729163]
[1744726885201,239.22,130.47,130.39,0.14216157]
[1744726885507,239.22,130.47,130.42,53.74729163]
[1744726885718,239.22,130.47,130.43,53.74729163]
[1744726885924,239.22,130.47,130.41,0.28432314]
[1744726886096,7.6651,130.46,130.42,53.74729163]
[1744726886298,7.6651,130.46,130.39,0.14216157]
[1744726886595,246.8847,130.47,130.43,53.74729163]
[1744726886791,53.74729163,130.46,130.41,53.74729163]
[1744726886992,53.74729163,130.45,130.36,0.14216157]
[1744726887195,53.74729163,130.45,130.35,18.79181043]
[1744726887196,53.74729163,130.42,130.35,0.28432314]
[1744726887395,266.0461,130.47,130.4,53.74729163]
[1744726887820,266.0461,130.47,130.44,53.74729163]
[1744726887821,246.8847,130.47,130.44,53.74729163]
[1744726888119,300.63199163,130.47,130.42,53.74729163]
[1744726888327,246.8847,130.47,130.4,0.42648471]
[1744726888503,53.74729163,130.45,130.4,53.74729163]
[1744726888690,53.74729163,130.44,130.38,54.03161477]
[1744726889013,266.0461,130.47,130.38,54.03161477]
[1744726889217,53.74729163,130.45,130.39,0.14216157]
[1744726889414,53.74729163,130.46,130.41,53.74729163]
[1744726889658,266.0461,130.47,130.41,53.74729163]
[1744726889800,266.0461,130.47,130.42,53.74729163]
[1744726890008,53.74729163,130.46,130.41,53.74729163]
[1744726890206,266.0461,130.47,130.4,53.8894532]
[1744726890207,53.74729163,130.45,130.4,53.8894532]
[1744726890403,53.74729163,130.44,130.39,53.8894532]
[1744726890598,53.74729163,130.4,130.31,7.6739]
[1744726890797,369.41887324,130.47,130.37,53.74729163]
[1744726891115,53.74729163,130.38,130.33,53.74729163]
[1744726891322,53.74729163,130.37,130.32,0.14216157]
[1744726891615,1.0,130.46,130.33,0.14216157]
[1744726891616,53.74729163,130.39,130.33,0.14216157]
[1744726891824,53.74729163,130.37,130.32,53.74729163]
[1744726891999,26.8404,130.4,130.31,53.8894532]
[1744726892198,53.74729163,130.38,130.31,0.14216157]
[1744726892395,26.8404,130.4,130.32,53.74729163]
[1744726892706,53.74729163,130.33,130.27,6.2204]
[1744726892915,26.8404,130.4,130.27,6.2204]
[1744726892916,46.8404,130.4,130.3,53.74729163]
[1744726893112,7.6675,130.42,130.38,53.94481775]
[1744726893427,7.6675,130.42,130.39,53.94481775]
[1744726893625,7.6675,130.42,130.35,0.42648471]
[1744726893928,7.6675,130.42,130.3,0.28432314]
[1744726894231,53.94481775,130.41,130.32,53.94481775]
[1744726894525,53.94481775,130.41,130.36,53.94481775]
[1744726894826,7.6663,130.44,130.4,53.94481775]
[1744726895327,7.6659,130.45,130.4,53.94481775]
[1744726895524,61.61001775,130.46,130.41,53.94481775]
[1744726895832,246.8847,130.47,130.43,53.94481775]
[1744726896143,246.8847,130.47,130.43,54.37130246]
[1744726896424,246.8847,130.47,130.43,53.94481775]
[1744726896632,293.18481775,130.55,130.45,53.94481775]
[1744726896811,53.94481775,130.49,130.44,54.08697932]
[1744726897012,293.18481775,130.55,130.43,53.94481775]
[1744726897013,53.94481775,130.48,130.43,53.94481775]
[1744726897318,53.94481775,130.49,130.44,53.94481775]
[1744726897527,53.94481775,130.48,130.43,53.94481775]
[1744726898034,26.8178,130.51,130.43,53.94481775]
[1744726898336,53.94481775,130.45,130.4,53.94481775]
[1744726898629,53.94481775,130.47,130.41,53.94481775]
[1744726898931,53.94481775,130.47,130.42,53.94481775]
[1744726899133,65.129,130.51,130.42,53.94481775]
[1744726899653,53.94481775,130.48,130.43,53.94481775]
[1744726900131,53.94481775,130.49,130.44,53.94481775]
[1744726900441,65.1143,130.54,130.45,54.08697932]
[1744726900638,53.94481775,130.51,130.46,53.94481775]
[1744726900811,53.94481775,130.52,130.47,53.94481775]
[1744726901530,53.94481775,130.53,130.48,53.94481775]
[1744726901733,7.6604,130.54,130.5,53.94481775]
[1744726902236,0.063,130.61,130.53,53.94481775]
[1744726902537,0.063,130.61,130.58,53.78931132]
[1744726903031,0.063,130.61,130.6,53.78931132]
[1744726903240,0.063,130.61,130.6,54.21579603]
[1744726903538,0.063,130.61,130.6,53.78931132]
[1744726903738,0.063,130.61,130.6,54.50011917]
[1744726904036,11.3367688,130.65,130.61,0.71080785]
[1744726904236,11.3367688,130.65,130.64,54.21579603]
[1744726904407,11.3367688,130.65,130.64,53.78931132]
[1744726904609,11.3367688,130.65,130.63,0.42648471]
[1744726904813,11.3367688,130.65,130.64,54.07363446]
[1744726905115,11.3367688,130.65,130.64,54.50011917]
[1744726905313,11.3367688,130.65,130.64,53.78931132]
[1744726905519,0.063,130.66,130.64,53.78931132]
[1744726905709,0.063,130.66,130.65,53.93147289]
[1744726905916,0.063,130.66,130.65,0.28432314]
[1744726906124,0.063,130.66,130.65,54.21579603]
[1744726906323,0.063,130.66,130.63,0.42648471]
[1744726906535,0.063,130.66,130.65,54.50011917]
[1744726906913,0.063,130.66,130.65,0.71080785]
[1744726907122,0.063,130.66,130.65,54.50011917]
[1744726907819,5.6236,130.68,130.66,0.71080785]
[1744726908023,5.6236,130.68,130.63,26.93526157]
[1744726908024,5.6236,130.68,130.67,54.50011917]
[1744726908227,5.6236,130.68,130.67,62.15291917]
[1744726908744,3.957,130.68,130.67,134.59187935]
[1744726908921,0.063,130.7,130.68,0.71080785]
[1744726909112,0.063,130.7,130.69,108.28943049]
[1744726909313,0.063,130.7,130.69,0.71080785]
[1744726909639,0.063,130.7,130.69,53.78931132]
[1744726909831,0.063,130.7,130.69,54.50011917]
[1744726910013,0.063,130.7,130.69,108.28943049]
[1744726910213,0.063,130.74,130.72,0.28432314]
[1744726910521,0.063,130.74,130.73,54.21579603]
[1744726911127,0.063,130.74,130.73,54.50011917]
[1744726912336,0.063,130.74,130.73,62.14941917]
[1744726912634,0.063,130.74,130.73,54.07363446]
[1744726912838,0.063,130.74,130.73,53.78931132]
[1744726913041,0.063,130.74,130.73,54.50011917]